[Event "Early-Titled-Tuesday-Blitz-March-19-2024"]
[Site "Chess.com"]
[Date "2024.03.19"]
[Round "3"]
[White "bazar-wokzal"]
[Black "Golden3agle"]
[Result "1/2-1/2"]
[WhiteElo "2565"]
[BlackElo "2312"]
[TimeControl "180+1"]
[EndTime "8:26:35 PDT"]
[Termination "Game drawn by repetition"]

1. e4 {[%clk 0:02:52]} 1... c5 {[%clk 0:02:59.2]} 2. c3 {[%clk 0:02:51.8]} 2...
e6 {[%clk 0:02:58.6]} 3. d4 {[%clk 0:02:51.6]} 3... d5 {[%clk 0:02:58.8]} 4. e5
{[%clk 0:02:51.6]} 4... f5 {[%clk 0:02:58]} 5. exf6 {[%clk 0:02:51.1]} 5... Nxf6
{[%clk 0:02:57.8]} 6. Nf3 {[%clk 0:02:50.9]} 6... Nc6 {[%clk 0:02:55]} 7. Bd3
{[%clk 0:02:48.1]} 7... Bd6 {[%clk 0:02:54.5]} 8. Bg5 {[%clk 0:02:44.1]} 8...
O-O {[%clk 0:02:54.3]} 9. O-O {[%clk 0:02:38.4]} 9... Qe8 {[%clk 0:02:53.3]} 10.
Nbd2 {[%clk 0:02:35]} 10... Qh5 {[%clk 0:02:51.9]} 11. h3 {[%clk 0:02:34.5]}
11... Bd7 {[%clk 0:02:40.4]} 12. Qe2 {[%clk 0:02:12.4]} 12... cxd4 {[%clk
0:02:32.9]} 13. Bxf6 {[%clk 0:02:11.3]} 13... Rxf6 {[%clk 0:02:31.5]} 14. cxd4
{[%clk 0:02:10]} 14... Raf8 {[%clk 0:02:24.6]} 15. Rae1 {[%clk 0:02:09.1]} 15...
Bf4 {[%clk 0:01:55]} 16. a3 {[%clk 0:02:09.9]} 16... Bxd2 {[%clk 0:01:50.6]} 17.
Qxd2 {[%clk 0:02:08.3]} 17... Rxf3 {[%clk 0:01:43.5]} 18. Be2 {[%clk 0:02:06.2]}
18... Rxf2 {[%clk 0:01:28.9]} 19. Rxf2 {[%clk 0:01:56.8]} 19... Rxf2 {[%clk
0:01:28.8]} 20. Kxf2 {[%clk 0:01:49.2]} 20... Qh4+ {[%clk 0:01:29.1]} 21. Ke3
{[%clk 0:01:35.4]} 21... Nxd4 {[%clk 0:01:21.8]} 22. Qxd4 {[%clk 0:01:25.2]}
22... Qxe1 {[%clk 0:01:21.7]} 23. Qxa7 {[%clk 0:01:24.8]} 23... Qc1+ {[%clk
0:01:21.2]} 24. Kf2 {[%clk 0:01:23.3]} 24... Qxb2 {[%clk 0:01:20.3]} 25. Qb8+
{[%clk 0:01:22.9]} 25... Kf7 {[%clk 0:01:20.3]} 26. Qc7 {[%clk 0:01:22.7]} 26...
Qd4+ {[%clk 0:01:13.7]} 27. Kf1 {[%clk 0:01:21.1]} 27... Ke7 {[%clk 0:01:12.2]}
28. Qxb7 {[%clk 0:01:19.5]} 28... Qa1+ {[%clk 0:01:11.8]} 29. Kf2 {[%clk
0:01:19.6]} 29... Qxa3 {[%clk 0:01:12.3]} 30. Qb8 {[%clk 0:01:18.2]} 30... Qc5+
{[%clk 0:01:11.5]} 31. Kf1 {[%clk 0:01:17.8]} 31... Qc1+ {[%clk 0:01:10.4]} 32.
Kf2 {[%clk 0:01:17.6]} 32... Qc5+ {[%clk 0:01:10.3]} 33. Kf1 {[%clk 0:01:17.1]}
33... Qc1+ {[%clk 0:01:10.1]} 34. Kf2 {[%clk 0:01:17.2]} 34... Qc5+ {[%clk
0:01:10.1]} 1/2-1/2

[Event "Early-Titled-Tuesday-Blitz-March-19-2024"]
[Site "Chess.com"]
[Date "2024.03.19"]
[Round "3"]
[White "Eliwood44"]
[Black "kenta1234"]
[Result "0-1"]
[WhiteElo "2526"]
[BlackElo "2814"]
[TimeControl "180+1"]
[EndTime "8:26:37 PDT"]
[Termination "kenta1234 won by resignation"]

1. d4 {[%clk 0:02:54.9]} 1... Nf6 {[%clk 0:02:59.5]} 2. c4 {[%clk 0:02:55]} 2...
g6 {[%clk 0:02:59.4]} 3. Nf3 {[%clk 0:02:55.3]} 3... Bg7 {[%clk 0:02:59.9]} 4.
e3 {[%clk 0:02:55.7]} 4... O-O {[%clk 0:03:00.1]} 5. Be2 {[%clk 0:02:53.6]} 5...
c5 {[%clk 0:03:00.6]} 6. d5 {[%clk 0:02:53.2]} 6... e6 {[%clk 0:03:00.7]} 7. h3
{[%clk 0:02:52.6]} 7... exd5 {[%clk 0:03:01]} 8. cxd5 {[%clk 0:02:53.1]} 8...
Re8 {[%clk 0:03:01.9]} 9. O-O {[%clk 0:02:51.7]} 9... d6 {[%clk 0:03:02.4]} 10.
a4 {[%clk 0:02:50.5]} 10... Nbd7 {[%clk 0:02:59.3]} 11. a5 {[%clk 0:02:48.9]}
11... Ne5 {[%clk 0:02:59.5]} 12. Nxe5 {[%clk 0:02:47.8]} 12... Rxe5 {[%clk
0:02:59.5]} 13. Nc3 {[%clk 0:02:47.9]} 13... Ne4 {[%clk 0:02:59.1]} 14. Nxe4
{[%clk 0:02:46]} 14... Rxe4 {[%clk 0:03:00]} 15. Bd3 {[%clk 0:02:45]} 15... Rb4
{[%clk 0:03:00.1]} 16. Ra2 {[%clk 0:02:34.9]} 16... Bd7 {[%clk 0:02:58.8]} 17.
e4 {[%clk 0:02:31.1]} 17... b5 {[%clk 0:02:58.5]} 18. Qc2 {[%clk 0:02:24.9]}
18... Qf6 {[%clk 0:02:46.5]} 19. b3 {[%clk 0:02:18.9]} 19... Qc3 {[%clk
0:02:43.4]} 20. Qxc3 {[%clk 0:02:06.9]} 20... Bxc3 {[%clk 0:02:42.9]} 21. Bc2
{[%clk 0:02:06.8]} 21... c4 {[%clk 0:02:32.9]} 22. bxc4 {[%clk 0:02:06.7]} 22...
Rxc4 {[%clk 0:02:32.4]} 23. Bd3 {[%clk 0:02:03.8]} 23... Rd4 {[%clk 0:02:17.2]}
24. Rd1 {[%clk 0:02:03.3]} 24... a6 {[%clk 0:02:10.1]} 25. Be3 {[%clk 0:02:01]}
25... Rb4 {[%clk 0:02:09.3]} 26. Rc2 {[%clk 0:01:55.9]} 26... Rb3 {[%clk
0:02:08.4]} 27. Rdc1 {[%clk 0:01:53.7]} 27... b4 {[%clk 0:02:08.4]} 28. Bb6
{[%clk 0:01:49.6]} 28... Kf8 {[%clk 0:02:03.8]} 29. f4 {[%clk 0:01:35.6]} 29...
Ke7 {[%clk 0:02:00.4]} 30. e5 {[%clk 0:01:21.8]} 30... dxe5 {[%clk 0:01:57.5]}
31. fxe5 {[%clk 0:01:22.7]} 31... Bxe5 {[%clk 0:01:56]} 32. Bc5+ {[%clk
0:01:22.6]} 32... Kf6 {[%clk 0:01:47.4]} 33. Rf1+ {[%clk 0:01:15.3]} 33... Kg7
{[%clk 0:01:45.2]} 34. Bc4 {[%clk 0:01:12.2]} 34... Rc3 {[%clk 0:01:43.7]} 35.
Rxc3 {[%clk 0:01:03.1]} 35... bxc3 {[%clk 0:01:39]} 36. d6 {[%clk 0:00:59.9]}
36... f5 {[%clk 0:01:38.9]} 37. g4 {[%clk 0:00:55.5]} 37... Rc8 {[%clk
0:01:38.2]} 0-1

[Event "Early-Titled-Tuesday-Blitz-March-19-2024"]
[Site "Chess.com"]
[Date "2024.03.19"]
[Round "3"]
[White "Zavgorodniy_Sergiy"]
[Black "mertfelin"]
[Result "1-0"]
[WhiteElo "2618"]
[BlackElo "2372"]
[TimeControl "180+1"]
[EndTime "8:26:39 PDT"]
[Termination "Zavgorodniy_Sergiy won by resignation"]

1. d4 {[%clk 0:03:00.9]} 1... d5 {[%clk 0:03:00.4]} 2. c4 {[%clk 0:02:59.4]}
2... e6 {[%clk 0:03:00.9]} 3. Nf3 {[%clk 0:02:58.9]} 3... Nf6 {[%clk 0:03:01.4]}
4. e3 {[%clk 0:02:58.2]} 4... Be7 {[%clk 0:03:00.5]} 5. Nbd2 {[%clk 0:02:58.2]}
5... O-O {[%clk 0:03:01.1]} 6. Bd3 {[%clk 0:02:57]} 6... b6 {[%clk 0:03:01.5]}
7. O-O {[%clk 0:02:54.4]} 7... Bb7 {[%clk 0:03:01.5]} 8. Qe2 {[%clk 0:02:54.3]}
8... c5 {[%clk 0:02:58.8]} 9. b3 {[%clk 0:02:53.3]} 9... cxd4 {[%clk 0:02:58.7]}
10. exd4 {[%clk 0:02:54.2]} 10... Nbd7 {[%clk 0:02:58.7]} 11. Bb2 {[%clk
0:02:53.7]} 11... Rc8 {[%clk 0:02:56.3]} 12. Rac1 {[%clk 0:02:53.6]} 12... Rc7
{[%clk 0:02:55.6]} 13. Rfd1 {[%clk 0:02:52.9]} 13... Qc8 {[%clk 0:02:49.3]} 14.
h3 {[%clk 0:02:50.6]} 14... Rd8 {[%clk 0:02:47.8]} 15. Qe3 {[%clk 0:02:48.7]}
15... a5 {[%clk 0:02:31.3]} 16. Ne5 {[%clk 0:02:43.5]} 16... dxc4 {[%clk
0:02:28.5]} 17. Ndxc4 {[%clk 0:02:32.9]} 17... Nd5 {[%clk 0:02:11.8]} 18. Qg3
{[%clk 0:02:25.6]} 18... N7f6 {[%clk 0:02:07.1]} 19. Re1 {[%clk 0:02:18.3]}
19... Bf8 {[%clk 0:02:04.2]} 20. Bb1 {[%clk 0:02:13.6]} 20... Ne7 {[%clk
0:01:51.3]} 21. Nxb6 {[%clk 0:02:07.1]} 21... Rxc1 {[%clk 0:01:49.2]} 22. Rxc1
{[%clk 0:02:04.8]} 22... Qb8 {[%clk 0:01:49.2]} 23. Nbc4 {[%clk 0:02:02.1]}
23... a4 {[%clk 0:01:43]} 24. Bc2 {[%clk 0:01:47.6]} 24... Ne4 {[%clk
0:01:35.3]} 25. Qf4 {[%clk 0:01:40.7]} 25... Nf6 {[%clk 0:01:35.6]} 26. bxa4
{[%clk 0:01:33.8]} 26... Bd5 {[%clk 0:01:32.7]} 27. Bb3 {[%clk 0:01:32.5]} 27...
Qa8 {[%clk 0:01:30.1]} 28. Nb6 {[%clk 0:01:27.4]} 28... Qa5 {[%clk 0:01:26]} 29.
Nxd5 {[%clk 0:01:25.9]} 29... Nfxd5 {[%clk 0:01:24.2]} 30. Qxf7+ {[%clk
0:01:22]} 30... Kh8 {[%clk 0:01:24.4]} 31. Qxe6 {[%clk 0:01:19.6]} 31... Qd2
{[%clk 0:01:06.5]} 32. Nf7+ {[%clk 0:01:18.6]} 32... Kg8 {[%clk 0:01:06.5]} 33.
Nh6+ {[%clk 0:01:18.7]} 33... Kh8 {[%clk 0:01:06.7]} 34. Qg8+ {[%clk 0:01:18.3]}
1-0

[Event "Early-Titled-Tuesday-Blitz-March-19-2024"]
[Site "Chess.com"]
[Date "2024.03.19"]
[Round "3"]
[White "ajedrezsinlimites"]
[Black "alvarorodriguezavila"]
[Result "1-0"]
[WhiteElo "2609"]
[BlackElo "2342"]
[TimeControl "180+1"]
[EndTime "8:26:39 PDT"]
[Termination "ajedrezsinlimites won by resignation"]

1. e4 {[%clk 0:03:00.9]} 1... c5 {[%clk 0:02:59.6]} 2. Nf3 {[%clk 0:03:00.7]}
2... g6 {[%clk 0:03:00.1]} 3. d4 {[%clk 0:03:00.7]} 3... cxd4 {[%clk 0:03:00]}
4. Nxd4 {[%clk 0:03:01.6]} 4... Bg7 {[%clk 0:03:00]} 5. c4 {[%clk 0:03:01.8]}
5... Nc6 {[%clk 0:03:00.6]} 6. Be3 {[%clk 0:03:01.5]} 6... Nf6 {[%clk
0:03:00.8]} 7. Nc3 {[%clk 0:03:01.6]} 7... O-O {[%clk 0:02:59.8]} 8. Be2 {[%clk
0:03:01.7]} 8... d6 {[%clk 0:03:00.1]} 9. O-O {[%clk 0:03:01.6]} 9... Nxd4
{[%clk 0:02:59]} 10. Bxd4 {[%clk 0:03:01.3]} 10... Bd7 {[%clk 0:02:59.6]} 11. h3
{[%clk 0:03:01.6]} 11... Bc6 {[%clk 0:03:00.2]} 12. Qc2 {[%clk 0:03:01.7]} 12...
a5 {[%clk 0:03:00.3]} 13. Rad1 {[%clk 0:02:59.8]} 13... Qc7 {[%clk 0:02:46.7]}
14. f4 {[%clk 0:02:56.1]} 14... Rfd8 {[%clk 0:02:35.8]} 15. Kh1 {[%clk
0:02:50.9]} 15... a4 {[%clk 0:02:21.2]} 16. b4 {[%clk 0:02:50.1]} 16... axb3
{[%clk 0:02:19.6]} 17. axb3 {[%clk 0:02:50]} 17... Qa5 {[%clk 0:01:59.2]} 18.
Bf3 {[%clk 0:02:44.8]} 18... Nd7 {[%clk 0:01:39.7]} 19. Bxg7 {[%clk 0:02:43.6]}
19... Kxg7 {[%clk 0:01:40.6]} 20. Nd5 {[%clk 0:02:39.8]} 20... Bxd5 {[%clk
0:01:36.8]} 21. Rxd5 {[%clk 0:02:40.7]} 21... Qa2 {[%clk 0:01:31.7]} 22. Qc3+
{[%clk 0:02:37.8]} 22... Kg8 {[%clk 0:01:31.5]} 23. e5 {[%clk 0:02:35.8]} 23...
dxe5 {[%clk 0:00:51.7]} 24. Rfd1 {[%clk 0:02:32.6]} 24... e4 {[%clk 0:00:15.2]}
25. Bxe4 {[%clk 0:02:29.1]} 25... Qe2 {[%clk 0:00:12.7]} 26. Re1 {[%clk
0:02:25.1]} 26... Qf2 {[%clk 0:00:10.4]} 27. Red1 {[%clk 0:02:20]} 27... Qe2
{[%clk 0:00:10]} 28. Bf3 {[%clk 0:02:19.8]} 28... Qe6 {[%clk 0:00:10]} 29. f5
{[%clk 0:02:19.5]} 29... gxf5 {[%clk 0:00:09.4]} 30. Qd2 {[%clk 0:02:18.7]}
30... Ra3 {[%clk 0:00:04.2]} 31. Rxd7 {[%clk 0:02:17.9]} 31... Rxd7 {[%clk
0:00:04.8]} 32. Qxd7 {[%clk 0:02:17.8]} 32... Qxd7 {[%clk 0:00:04.4]} 33. Rxd7
{[%clk 0:02:18.3]} 33... Rxb3 {[%clk 0:00:04.9]} 34. Rxb7 {[%clk 0:02:19]} 34...
Rxb7 {[%clk 0:00:04]} 35. Bxb7 {[%clk 0:02:18.3]} 1-0

[Event "Early-Titled-Tuesday-Blitz-March-19-2024"]
[Site "Chess.com"]
[Date "2024.03.19"]
[Round "3"]
[White "BashirliSaadat"]
[Black "gorgeous1083"]
[Result "1-0"]
[WhiteElo "2364"]
[BlackElo "2068"]
[TimeControl "180+1"]
[EndTime "8:26:39 PDT"]
[Termination "BashirliSaadat won by resignation"]

1. d4 {[%clk 0:03:00.9]} 1... Nf6 {[%clk 0:02:58.9]} 2. e3 {[%clk 0:03:00.9]}
2... e6 {[%clk 0:02:59.5]} 3. Bd3 {[%clk 0:02:59.4]} 3... d5 {[%clk 0:03:00]} 4.
f4 {[%clk 0:02:59.2]} 4... Be7 {[%clk 0:02:57.6]} 5. Nf3 {[%clk 0:02:57.7]} 5...
c5 {[%clk 0:02:57.7]} 6. c3 {[%clk 0:02:56.9]} 6... b6 {[%clk 0:02:57.8]} 7. Qe2
{[%clk 0:02:55]} 7... a5 {[%clk 0:02:56.4]} 8. Ne5 {[%clk 0:02:35.3]} 8... O-O
{[%clk 0:02:52.4]} 9. O-O {[%clk 0:02:33.8]} 9... Nfd7 {[%clk 0:02:42.9]} 10.
Nd2 {[%clk 0:02:30.2]} 10... f6 {[%clk 0:02:41.3]} 11. Nxd7 {[%clk 0:02:25.5]}
11... Nxd7 {[%clk 0:02:30]} 12. b3 {[%clk 0:02:25.1]} 12... e5 {[%clk
0:02:21.6]} 13. fxe5 {[%clk 0:02:23.7]} 13... fxe5 {[%clk 0:02:20.9]} 14. Qh5
{[%clk 0:02:10.9]} 14... Rxf1+ {[%clk 0:01:59.2]} 15. Nxf1 {[%clk 0:02:09.2]}
15... Nf6 {[%clk 0:01:55]} 16. Qxe5 {[%clk 0:02:08.8]} 16... Bd6 {[%clk
0:01:48.8]} 17. Qg5 {[%clk 0:02:07.2]} 17... Be6 {[%clk 0:01:25.4]} 18. Bb2
{[%clk 0:02:03.7]} 18... Qe7 {[%clk 0:01:19.3]} 19. Re1 {[%clk 0:02:01.7]} 19...
Rf8 {[%clk 0:01:18]} 20. c4 {[%clk 0:01:57.4]} 20... Qf7 {[%clk 0:00:59.2]} 21.
Qh4 {[%clk 0:01:52.4]} 21... dxc4 {[%clk 0:00:57]} 22. dxc5 {[%clk 0:01:39]}
22... Bxc5 {[%clk 0:00:43.3]} 23. bxc4 {[%clk 0:01:29.9]} 23... Bxc4 {[%clk
0:00:40.2]} 24. Bxc4 {[%clk 0:01:28.9]} 24... Qxc4 {[%clk 0:00:39.2]} 25. Qxc4+
{[%clk 0:01:27.6]} 1-0

[Event "Early-Titled-Tuesday-Blitz-March-19-2024"]
[Site "Chess.com"]
[Date "2024.03.19"]
[Round "3"]
[White "whiteglovethief"]
[Black "Mikasinski"]
[Result "0-1"]
[WhiteElo "2451"]
[BlackElo "2656"]
[TimeControl "180+1"]
[EndTime "8:26:47 PDT"]
[Termination "Mikasinski won by resignation"]

1. d4 {[%clk 0:03:00.9]} 1... Nf6 {[%clk 0:02:54.3]} 2. c4 {[%clk 0:02:59.6]}
2... e6 {[%clk 0:02:54.7]} 3. Nf3 {[%clk 0:02:58]} 3... Bb4+ {[%clk 0:02:52.9]}
4. Bd2 {[%clk 0:02:56.3]} 4... a5 {[%clk 0:02:53.4]} 5. g3 {[%clk 0:02:55.2]}
5... d5 {[%clk 0:02:52.9]} 6. Bg2 {[%clk 0:02:54.9]} 6... O-O {[%clk 0:02:53.2]}
7. O-O {[%clk 0:02:53.9]} 7... h6 {[%clk 0:02:51.8]} 8. a3 {[%clk 0:02:52.3]}
8... Bxd2 {[%clk 0:02:51.5]} 9. Nbxd2 {[%clk 0:02:52.2]} 9... Nbd7 {[%clk
0:02:49.6]} 10. Qc2 {[%clk 0:02:52]} 10... b6 {[%clk 0:02:39.5]} 11. cxd5 {[%clk
0:02:50.9]} 11... exd5 {[%clk 0:02:39.9]} 12. Rac1 {[%clk 0:02:50.9]} 12... Ba6
{[%clk 0:02:39.3]} 13. Qxc7 {[%clk 0:02:35.9]} 13... Bxe2 {[%clk 0:02:38.8]} 14.
Rfe1 {[%clk 0:02:35.4]} 14... Bb5 {[%clk 0:02:27.5]} 15. Ne5 {[%clk 0:02:31.3]}
15... Rc8 {[%clk 0:02:19.7]} 16. Qd6 {[%clk 0:02:21.3]} 16... Nxe5 {[%clk
0:02:11.2]} 17. Qxd8 {[%clk 0:02:02.9]} 17... Rfxd8 {[%clk 0:02:03.9]} 18. dxe5
{[%clk 0:02:01.5]} 18... Rxc1 {[%clk 0:01:56]} 19. Rxc1 {[%clk 0:02:00.1]} 19...
Ng4 {[%clk 0:01:56.3]} 20. f4 {[%clk 0:01:53.1]} 20... d4 {[%clk 0:01:56.6]} 21.
Bh3 {[%clk 0:01:30.3]} 21... Ne3 {[%clk 0:01:54.3]} 22. Kf2 {[%clk 0:01:23.7]}
22... g5 {[%clk 0:01:52.2]} 23. e6 {[%clk 0:01:06.8]} 23... g4 {[%clk
0:01:50.5]} 24. exf7+ {[%clk 0:01:00.5]} 24... Kxf7 {[%clk 0:01:50.8]} 25. Bg2
{[%clk 0:00:57.2]} 25... Nxg2 {[%clk 0:01:45.6]} 26. Kxg2 {[%clk 0:00:57.8]}
26... Re8 {[%clk 0:01:46.3]} 27. Nc4 {[%clk 0:00:47]} 27... Re2+ {[%clk
0:01:44.1]} 28. Kg1 {[%clk 0:00:47.3]} 28... Bxc4 {[%clk 0:01:42]} 29. Rxc4
{[%clk 0:00:47.8]} 29... d3 {[%clk 0:01:42.9]} 30. Kf1 {[%clk 0:00:46.4]} 30...
Rxh2 {[%clk 0:01:37.9]} 31. Rd4 {[%clk 0:00:43.3]} 31... d2 {[%clk 0:01:38.3]}
32. Kg1 {[%clk 0:00:42.2]} 32... Re2 {[%clk 0:01:38.9]} 0-1

[Event "Early-Titled-Tuesday-Blitz-March-19-2024"]
[Site "Chess.com"]
[Date "2024.03.19"]
[Round "3"]
[White "GHANDEEVAM2003"]
[Black "Kolle05"]
[Result "1-0"]
[WhiteElo "3055"]
[BlackElo "2572"]
[TimeControl "180+1"]
[EndTime "8:27:01 PDT"]
[Termination "GHANDEEVAM2003 won on time"]

1. b3 {[%clk 0:02:57]} 1... e5 {[%clk 0:02:58]} 2. Bb2 {[%clk 0:02:57.9]} 2...
Nc6 {[%clk 0:02:58.7]} 3. e3 {[%clk 0:02:58.2]} 3... Nf6 {[%clk 0:02:59.3]} 4.
c4 {[%clk 0:02:58.6]} 4... Be7 {[%clk 0:02:54.1]} 5. Nf3 {[%clk 0:02:58]} 5...
d6 {[%clk 0:02:53.7]} 6. d4 {[%clk 0:02:57.5]} 6... e4 {[%clk 0:02:48.3]} 7.
Nfd2 {[%clk 0:02:57.5]} 7... O-O {[%clk 0:02:48.8]} 8. Nc3 {[%clk 0:02:57.8]}
8... Bf5 {[%clk 0:02:48.4]} 9. Be2 {[%clk 0:02:57]} 9... Bg6 {[%clk 0:02:39.6]}
10. g4 {[%clk 0:02:55.3]} 10... Re8 {[%clk 0:02:21.2]} 11. h4 {[%clk 0:02:54]}
11... h6 {[%clk 0:02:17.6]} 12. g5 {[%clk 0:02:48.1]} 12... hxg5 {[%clk
0:02:17.5]} 13. hxg5 {[%clk 0:02:49]} 13... Nh7 {[%clk 0:02:17.9]} 14. Ndxe4
{[%clk 0:02:49.7]} 14... Nxg5 {[%clk 0:02:16.1]} 15. Bd3 {[%clk 0:02:34.5]}
15... Nxe4 {[%clk 0:01:45.5]} 16. Bxe4 {[%clk 0:02:35.4]} 16... Bxe4 {[%clk
0:01:44.9]} 17. Nxe4 {[%clk 0:02:36.3]} 17... Bf6 {[%clk 0:01:38.1]} 18. Qf3
{[%clk 0:02:18]} 18... Bxd4 {[%clk 0:00:58.4]} 19. Qh5 {[%clk 0:01:57.3]} 19...
Kf8 {[%clk 0:00:57.6]} 20. Ng5 {[%clk 0:01:57.9]} 20... g6 {[%clk 0:00:06.5]}
21. Qh6+ {[%clk 0:01:56.1]} 21... Ke7 {[%clk 0:00:06.6]} 22. exd4 {[%clk
0:01:54.6]} 22... Kd7+ {[%clk 0:00:06.4]} 23. Kf1 {[%clk 0:01:54.2]} 23... Qf6
{[%clk 0:00:05.8]} 24. Qh3+ {[%clk 0:01:53]} 24... Kd8 {[%clk 0:00:05.3]} 25.
Qh4 {[%clk 0:01:52.6]} 25... Kc8 {[%clk 0:00:04.3]} 26. Re1 {[%clk 0:01:50.9]}
26... Rxe1+ {[%clk 0:00:03.5]} 27. Kxe1 {[%clk 0:01:51.8]} 27... Kd7 {[%clk
0:00:01.1]} 28. Qg4+ {[%clk 0:01:51.3]} 1-0

[Event "Early-Titled-Tuesday-Blitz-March-19-2024"]
[Site "Chess.com"]
[Date "2024.03.19"]
[Round "3"]
[White "NovoselovRoman"]
[Black "ActorXu"]
[Result "1-0"]
[WhiteElo "2552"]
[BlackElo "2833"]
[TimeControl "180+1"]
[EndTime "8:27:02 PDT"]
[Termination "NovoselovRoman won by checkmate"]

1. e4 {[%clk 0:03:00.9]} 1... c6 {[%clk 0:02:32.5]} 2. d4 {[%clk 0:03:00.4]}
2... d5 {[%clk 0:02:33.1]} 3. Nc3 {[%clk 0:03:01.1]} 3... dxe4 {[%clk
0:02:33.1]} 4. Nxe4 {[%clk 0:03:02]} 4... Nf6 {[%clk 0:02:33.7]} 5. Ng3 {[%clk
0:03:00.8]} 5... Nbd7 {[%clk 0:02:30.7]} 6. Bc4 {[%clk 0:03:00.3]} 6... Nb6
{[%clk 0:02:30.4]} 7. Bb3 {[%clk 0:03:00.9]} 7... Bg4 {[%clk 0:02:29.3]} 8. f3
{[%clk 0:03:00.8]} 8... Bh5 {[%clk 0:02:27.5]} 9. Nxh5 {[%clk 0:02:59.1]} 9...
Nxh5 {[%clk 0:02:27.8]} 10. Ne2 {[%clk 0:02:59.6]} 10... e6 {[%clk 0:02:26.8]}
11. Be3 {[%clk 0:02:58.3]} 11... Nf6 {[%clk 0:02:26.9]} 12. O-O {[%clk
0:02:56.5]} 12... Bd6 {[%clk 0:02:27.3]} 13. c4 {[%clk 0:02:46]} 13... h6 {[%clk
0:02:27.5]} 14. Bf2 {[%clk 0:02:40.6]} 14... Be7 {[%clk 0:02:26.5]} 15. Qd3
{[%clk 0:02:34]} 15... Qc7 {[%clk 0:02:24.3]} 16. Bg3 {[%clk 0:02:29.7]} 16...
Qd7 {[%clk 0:02:23.1]} 17. Rad1 {[%clk 0:02:28.2]} 17... O-O {[%clk 0:02:23]}
18. Be5 {[%clk 0:02:22.4]} 18... Rad8 {[%clk 0:02:19.2]} 19. Bc2 {[%clk
0:02:19.8]} 19... Rfe8 {[%clk 0:02:12.4]} 20. Nf4 {[%clk 0:01:51.4]} 20... Kf8
{[%clk 0:02:02.1]} 21. Rfe1 {[%clk 0:01:43.4]} 21... Ng8 {[%clk 0:01:52.7]} 22.
Qh7 {[%clk 0:01:15.6]} 22... Bf6 {[%clk 0:01:50.2]} 23. Nh5 {[%clk 0:01:08.8]}
23... Ke7 {[%clk 0:01:44.2]} 24. Nxg7 {[%clk 0:01:04.7]} 24... Bxg7 {[%clk
0:01:43.9]} 25. Qxg7 {[%clk 0:00:41.2]} 25... Rf8 {[%clk 0:01:41.4]} 26. b3
{[%clk 0:00:39]} 26... Qe8 {[%clk 0:01:38.2]} 27. Bc7 {[%clk 0:00:30.5]} 27...
Rc8 {[%clk 0:01:31.2]} 28. Rxe6+ {[%clk 0:00:24.4]} 28... Kxe6 {[%clk
0:01:29.7]} 29. Qe5+ {[%clk 0:00:25]} 29... Kd7 {[%clk 0:01:29.5]} 30. Qd6#
{[%clk 0:00:25.6]} 1-0

[Event "Early-Titled-Tuesday-Blitz-March-19-2024"]
[Site "Chess.com"]
[Date "2024.03.19"]
[Round "3"]
[White "Lennis93"]
[Black "MITerryble"]
[Result "0-1"]
[WhiteElo "2766"]
[BlackElo "2994"]
[TimeControl "180+1"]
[EndTime "8:27:07 PDT"]
[Termination "MITerryble won by resignation"]

1. d4 {[%clk 0:03:00.9]} 1... e6 {[%clk 0:02:58.9]} 2. Nf3 {[%clk 0:03:01.6]}
2... Nf6 {[%clk 0:02:59.2]} 3. c4 {[%clk 0:03:01.5]} 3... Bb4+ {[%clk
0:02:57.9]} 4. Bd2 {[%clk 0:03:01.7]} 4... c5 {[%clk 0:02:58]} 5. Bxb4 {[%clk
0:02:52.5]} 5... cxb4 {[%clk 0:02:58.9]} 6. a3 {[%clk 0:02:52.5]} 6... bxa3
{[%clk 0:02:58.8]} 7. Rxa3 {[%clk 0:02:52.7]} 7... Nc6 {[%clk 0:02:58.4]} 8. d5
{[%clk 0:02:44.7]} 8... Nb4 {[%clk 0:02:56.4]} 9. Nc3 {[%clk 0:02:44.4]} 9...
O-O {[%clk 0:02:54.7]} 10. d6 {[%clk 0:02:10]} 10... Qb6 {[%clk 0:02:45.3]} 11.
e4 {[%clk 0:02:09.4]} 11... Ne8 {[%clk 0:02:38]} 12. Nb5 {[%clk 0:00:49.4]}
12... a6 {[%clk 0:02:25]} 13. Ra4 {[%clk 0:00:39.4]} 13... Nc6 {[%clk
0:02:12.9]} 14. e5 {[%clk 0:00:29.3]} 14... Rb8 {[%clk 0:02:09.3]} 15. Nbd4
{[%clk 0:00:06.4]} 15... Qxb2 {[%clk 0:02:09]} 16. Be2 {[%clk 0:00:06.2]} 16...
f6 {[%clk 0:01:59.4]} 17. Nxc6 {[%clk 0:00:05.9]} 17... bxc6 {[%clk 0:01:51.9]}
18. O-O {[%clk 0:00:05.4]} 18... fxe5 {[%clk 0:01:50.8]} 19. c5 {[%clk
0:00:05.7]} 19... Nf6 {[%clk 0:01:46.4]} 20. Rh4 {[%clk 0:00:05.1]} 20... e4
{[%clk 0:01:43.8]} 21. Ng5 {[%clk 0:00:04.9]} 21... Qe5 {[%clk 0:01:43.5]} 22.
Qc1 {[%clk 0:00:04.5]} 22... Rb3 {[%clk 0:01:30]} 23. Nh3 {[%clk 0:00:04.2]}
23... Rc3 {[%clk 0:01:29.8]} 24. Qe3 {[%clk 0:00:02.2]} 24... Rxe3 {[%clk
0:01:29.7]} 0-1